Workbook

Sheet Simulador de Fatura
A6: 3

Sheet Tarifas (hidden)
A1: Descrip. | B1: Tarifa | G1: 2022 | H1: =1.130946673 -> 1.130946673 | J1: 1.013721718 | N1: CHECK
A2: Agua - Residencial - 1 - Fixo | B2: =E2*$D$2 -> 22.00503652 | D2: =J1 -> 1.013721718 | E2: =G2*$H$1 -> 21.70717676 | G2: 19.19381106 | M2: 19.19381106 | N2: =G2-M2 -> 0
A3: Agua - Residencial - 2 - Fixo | B3: =E3*$D$2 -> 26.18599346 | E3: =G3*$H$1 -> 25.83154035 | G3: 22.84063517 | M3: 22.84063517 | N3: =G3-M3 -> 0
A4: Agua - Residencial - 3 - Fixo | B4: 31.16133222 | E4: 30.73953302 | G4: 27.18035585 | M4: 27.18035585 | N4: 0
A5: Agua - Residencial - 4 - Fixo | B5: 37.08198534 | E5: 36.58004429 | G5: 32.34462346 | K5: =10*B338+B2 -> 42.70259376 | M5: 32.34462346 | N5: 0
A6: Agua - Residencial - 5 - Fixo | B6: 44.12756256 | E6: 43.5302527 | G6: 38.49010191 | K6: 42.70259375 | M6: 38.49010191 | N6: 0
A7: Agua - Residencial - 6 - Fixo | B7: 52.51179944 | E7: 51.80100072 | G7: 45.80322128 | K7: =K5-K6 -> 8.150259134e-09 | M7: 45.80322128 | N7: 0
A8: Agua - Residencial Coletivo 1 - 1 - Fixo | B8: 44.01007304 | E8: 43.41435353 | G8: 38.38762213 | M8: 38.39 | N8: -0.00237787379
A9: Agua - Residencial Coletivo 1 - 2 - Fixo | B9: 52.37198692 | E9: 51.6630807 | G9: 45.68127033 | M9: 45.68 | N9: 0.00127033019
A10: Agua - Residencial Coletivo 1 - 3 - Fixo | B10: 62.32266444 | E10: 61.47906603 | G10: 54.36071169 | M10: 54.36 | N10: 0.0007116929259
A11: Agua - Residencial Coletivo 1 - 4 - Fixo | B11: 74.16397068 | E11: 73.16008858 | G11: 64.68924691 | M11: 64.69 | N11: -0.0007530854181
A12: Agua - Residencial Coletivo 1 - 5 - Fixo | B12: 88.25512511 | E12: 87.06050541 | G12: 76.98020383 | M12: 76.98 | N12: 0.0002038283524
A13: Agua - Residencial Coletivo 1 - 6 - Fixo | B13: 105.0235989 | E13: 103.6020014 | G13: 91.60644256 | M13: 91.61 | N13: -0.003557444261
A14: Agua - Residencial Coletivo 2 - 1 - Fixo | B14: 660.1510957 | E14: 651.2153029 | G14: 575.8143319 | M14: 575.81 | N14: 0.00433189315
A15: Agua - Residencial Coletivo 2 - 2 - Fixo | B15: 785.5798038 | E15: 774.9462105 | G15: 685.219055 | M15: 685.22 | N15: -0.0009450471522
A16: Agua - Residencial Coletivo 2 - 3 - Fixo | B16: 934.8399666 | E16: 922.1859905 | G16: 815.4106754 | M16: 815.41 | N16: 0.0006753938889
A17: Agua - Residencial Coletivo 2 - 4 - Fixo | B17: 1112.45956 | E17: 1097.401329 | G17: 970.3387037 | M17: 970.34 | N17: -0.001296281272
A18: Agua - Residencial Coletivo 2 - 5 - Fixo | B18: 1323.826877 | E18: 1305.907581 | G18: 1154.703057 | M18: 1154.7 | N18: 0.003057425286
A19: Agua - Residencial Coletivo 2 - 6 - Fixo | B19: 1575.353983 | E19: 1554.030022 | G19: 1374.096638 | M19: 1374.1 | N19: -0.00336166391
A20: Agua - Residencial Coletivo 3 - 1 - Fixo | B20: 1738.397885 | E20: 1714.866964 | G20: 1516.311074 | M20: 1516.31 | N20: 0.001073985294
A21: Agua - Residencial Coletivo 3 - 2 - Fixo | B21: 2068.693483 | E21: 2040.691688 | G21: 1804.410178 | M21: 1804.41 | N21: 0.0001780424993
A22: Agua - Residencial Coletivo 3 - 3 - Fixo | B22: 2461.745245 | E22: 2428.423108 | G22: 2147.248112 | M22: 2147.25 | N22: -0.001888129426
A23: Agua - Residencial Coletivo 3 - 4 - Fixo | B23: 2929.476842 | E23: 2889.823499 | G23: 2555.225253 | M23: 2555.23 | N23: -0.004746874016
A24: Agua - Residencial Coletivo 3 - 5 - Fixo | B24: 3486.077442 | E24: 3438.889964 | G24: 3040.718051 | M24: 3040.72 | N24: -0.001948780079
A25: Agua - Residencial Coletivo 3 - 6 - Fixo | B25: 4148.432156 | E25: 4092.279057 | G25: 3618.454481 | M25: 3618.45 | N25: 0.004480951705
A26: Agua - Residencial Coletivo 4 - 1 - Fixo | B26: 7855.798038 | E26: 7749.462105 | G26: 6852.19055 | M26: 6852.19 | N26: 0.0005495284795
A27: Agua - Residencial Coletivo 4 - 2 - Fixo | B27: 9348.399666 | E27: 9221.859905 | G27: 8154.106754 | M27: 8154.11 | N27: -0.003246061109
A28: Agua - Residencial Coletivo 4 - 3 - Fixo | B28: 11124.5956 | E28: 10974.01329 | G28: 9703.387037 | M28: 9703.39 | N28: -0.002962812719
A29: Agua - Residencial Coletivo 4 - 4 - Fixo | B29: 13238.26877 | E29: 13059.07581 | G29: 11547.03057 | M29: 11547.03 | N29: 0.0005742528592
A30: Agua - Residencial Coletivo 4 - 5 - Fixo | B30: 15753.53983 | E30: 15540.30022 | G30: 13740.96638 | M30: 13740.97 | N30: -0.003616639096
A31: Agua - Residencial Coletivo 4 - 6 - Fixo | B31: 18746.7124 | E31: 18492.95726 | G31: 16351.75 | M31: 16351.75 | N31: -3.800527338e-06
A32: Agua - Social II - 1 - Fixo | B32: 8.802014609 | E32: 8.682870706 | G32: 7.677524425 | M32: 7.68 | N32: -0.002475574758
A33: Agua - Social II - 2 - Fixo | B33: 10.47439738 | E33: 10.33261614 | G33: 9.136254066 | M33: 9.14 | N33: -0.003745933962
A34: Agua - Social II - 3 - Fixo | B34: 12.46453289 | E34: 12.29581321 | G34: 10.87214234 | M34: 10.87 | N34: 0.002142338585
A35: Agua - Social II - 4 - Fixo | B35: 14.83279414 | E35: 14.63201772 | G35: 12.93784938 | M35: 12.94 | N35: -0.002150617084
A36: Agua - Social II - 5 - Fixo | B36: 17.65102502 | E36: 17.41210108 | G36: 15.39604077 | M36: 15.4 | N36: -0.00395923433
A37: Agua - Social II - 6 - Fixo | B37: 21.00471978 | E37: 20.72040029 | G37: 18.32128851 | M37: 18.32 | N37: 0.001288511148
A38: Agua - Social I - 1 - Fixo | B38: 5.501259131 | E38: 5.426794191 | G38: 4.798452766 | M38: 4.8 | N38: -0.001547234224
A39: Agua - Social I - 2 - Fixo | B39: 6.546498365 | E39: 6.457885087 | G39: 5.710158791 | M39: 5.71 | N39: 0.0001587912737
A40: Agua - Social I - 3 - Fixo | B40: 7.790333055 | E40: 7.684883254 | G40: 6.795088962 | M40: 6.8 | N40: -0.004911038384
A41: Agua - Social I - 4 - Fixo | B41: 9.270496335 | E41: 9.145011072 | G41: 8.086155864 | M41: 8.09 | N41: -0.003844135677
A42: Agua - Social I - 5 - Fixo | B42: 11.03189064 | E42: 10.88256318 | G42: 9.622525479 | M42: 9.62 | N42: 0.002525478544
A43: Agua - Social I - 6 - Fixo | B43: 13.12794986 | E43: 12.95025018 | G43: 11.45080532 | M43: 11.45 | N43: 0.0008053194674
A44: Agua - Comercial e Serviços - 1 - Fixo | B44: 22.00503652 | E44: 21.70717676 | G44: 19.19381106 | M44: 19.19 | N44: 0.003811063105
A45: Agua - Comercial e Serviços - 2 - Fixo | B45: 26.40604383 | E45: 26.04861212 | G45: 23.03257328 | M45: 23.03 | N45: 0.002573275726
A46: Agua - Comercial e Serviços - 3 - Fixo | B46: 33.00755478 | E46: 32.56076515 | G46: 28.79071659 | M46: 28.79 | N46: 0.0007165946575
A47: Agua - Comercial e Serviços - 4 - Fixo | B47: 39.60906574 | E47: 39.07291818 | G47: 34.54885991 | M47: 34.55 | N47: -0.001140086411
A48: Agua - Comercial e Serviços - 5 - Fixo | B48: 47.53087889 | E48: 46.88750181 | G48: 41.4586319 | M48: 41.46 | N48: -0.001368103693
A49: Agua - Comercial e Serviços - 6 - Fixo | B49: 57.03705467 | E49: 56.26500217 | G49: 49.75035828 | M49: 49.75 | N49: 0.0003582755681
A50: Agua - Comercial Coletivo 1 - 1 - Fixo | B50: 44.01007304 | E50: 43.41435353 | G50: 38.38762213 | M50: 38.39 | N50: -0.00237787379
A51: Agua - Comercial Coletivo 1 - 2 - Fixo | B51: 52.81208765 | E51: 52.09722423 | G51: 46.06514655 | M51: 46.07 | N51: -0.004853448548
A52: Agua - Comercial Coletivo 1 - 3 - Fixo | B52: 66.01510957 | E52: 65.12153029 | G52: 57.58143319 | M52: 57.58 | N52: 0.001433189315
A53: Agua - Comercial Coletivo 1 - 4 - Fixo | B53: 79.21813148 | E53: 78.14583635 | G53: 69.09771983 | M53: 69.1 | N53: -0.002280172822
A54: Agua - Comercial Coletivo 1 - 5 - Fixo | B54: 95.06175778 | E54: 93.77500362 | G54: 82.91726379 | M54: 82.92 | N54: -0.002736207386
A55: Agua - Comercial Coletivo 1 - 6 - Fixo | B55: 114.0741093 | E55: 112.5300043 | G55: 99.50071655 | M55: 99.5 | N55: 0.0007165511362
A56: Agua - Comercial Coletivo 2 - 1 - Fixo | B56: 242.0554017 | E56: 238.7789444 | G56: 211.1319217 | M56: 211.13 | N56: 0.001921694155
A57: Agua - Comercial Coletivo 2 - 2 - Fixo | B57: 290.4664821 | E57: 286.5347333 | G57: 253.358306 | M57: 253.36 | N57: -0.001693967014
A58: Agua - Comercial Coletivo 2 - 3 - Fixo | B58: 363.0831026 | E58: 358.1684166 | G58: 316.6978825 | M58: 316.7 | N58: -0.002117458768
A59: Agua - Comercial Coletivo 2 - 4 - Fixo | B59: 435.6997231 | E59: 429.8020999 | G59: 380.037459 | M59: 380.04 | N59: -0.002540950521
A60: Agua - Comercial Coletivo 2 - 5 - Fixo | B60: 522.8396678 | E60: 515.7625199 | G60: 456.0449509 | M60: 456.04 | N60: 0.004950859374
A61: Agua - Comercial Coletivo 2 - 6 - Fixo | B61: 627.4076013 | E61: 618.9150239 | G61: 547.253941 | M61: 547.25 | N61: 0.003941031249
A62: Agua - Comercial Coletivo 3 - 1 - Fixo | B62: 2640.604383 | E62: 2604.861212 | G62: 2303.257328 | M62: 2303.26 | N62: -0.002672427402
A63: Agua - Comercial Coletivo 3 - 2 - Fixo | B63: 3168.725259 | E63: 3125.833454 | G63: 2763.908793 | M63: 2763.91 | N63: -0.001206912882
A64: Agua - Comercial Coletivo 3 - 3 - Fixo | B64: 3960.906574 | E64: 3907.291818 | G64: 3454.885991 | M64: 3454.89 | N64: -0.004008641103
A65: Agua - Comercial Coletivo 3 - 4 - Fixo | B65: 4753.087889 | E65: 4688.750181 | G65: 4145.86319 | M65: 4145.86 | N65: 0.003189630677
A66: Agua - Comercial Coletivo 3 - 5 - Fixo | B66: 5703.705467 | E66: 5626.500217 | G66: 4975.035828 | M66: 4975.04 | N66: -0.004172443188
A67: Agua - Comercial Coletivo 3 - 6 - Fixo | B67: =E67*$D$2 -> 6844.44656 | E67: =G67*$H$1 -> 6751.800261 | G67: 5970.042993 | M67: 5970.04 | N67: =G67-M67 -> 0.002993068174
A68: Agua - Comercial Coletivo 4 - 1 - Fixo | B68: 6249.430372 | E68: 6164.838201 | G68: 5451.042342 | M68: 5451.04 | N68: 0.002341921815
A69: Agua - Comercial Coletivo 4 - 2 - Fixo | B69: 7499.316447 | E69: 7397.805841 | G69: 6541.25081 | M69: 6541.25 | N69: 0.0008103061791
A70: Agua - Comercial Coletivo 4 - 3 - Fixo | B70: 9374.145558 | E70: 9247.257301 | G70: 8176.563513 | M70: 8176.56 | N70: 0.003512882724
A71: Agua - Comercial Coletivo 4 - 4 - Fixo | B71: 11248.97467 | E71: 11096.70876 | G71: 9811.876215 | M71: 9811.88 | N71: -0.003784540731
A72: Agua - Comercial Coletivo 4 - 5 - Fixo | B72: 13498.7696 | E72: 13316.05051 | G72: 11774.25146 | M72: 11774.25 | N72: 0.00145855112
A73: Agua - Comercial Coletivo 4 - 6 - Fixo | B73: 16198.52352 | E73: 15979.26062 | G73: 14129.10175 | M73: 14129.1 | N73: 0.001750261345
A74: Agua - Industrial - 1 - Fixo | B74: 48.41108035 | E74: 47.75578888 | G74: 42.22638434 | M74: 42.23 | N74: -0.003615661169
A75: Agua - Industrial - 2 - Fixo | B75: 58.09329642 | E75: 57.30694666 | G75: 50.67166121 | M75: 50.67 | N75: 0.001661206597
A76: Agua - Industrial - 3 - Fixo | B76: 69.7119557 | E76: 68.76833599 | G76: 60.80599345 | M76: 60.81 | N76: -0.004006552083
A77: Agua - Industrial - 4 - Fixo | B77: 83.65434684 | E77: 82.52200319 | G77: 72.96719214 | M77: 72.97 | N77: -0.0028078625
A78: Agua - Industrial - 5 - Fixo | B78: 96.20249887 | E78: 94.90030366 | G78: 83.91227096 | M78: 83.91 | N78: 0.002270958125
A79: Agua - Industrial - 6 - Fixo | B79: 110.6328737 | E79: 109.1353492 | G79: 96.4991116 | M79: 96.5 | N79: -0.0008883981564
A80: Agua - Poder Público - 1 - Fixo | B80: 24.20554017 | E80: 23.87789444 | G80: 21.11319217 | M80: 21.11 | N80: 0.003192169415
A81: Agua - Poder Público - 2 - Fixo | B81: 29.04664821 | E81: 28.65347333 | G81: 25.3358306 | M81: 25.34 | N81: -0.004169396701
A82: Agua - Poder Público - 3 - Fixo | B82: 36.30831026 | E82: 35.81684166 | G82: 31.66978825 | M82: 31.67 | N82: -0.0002117458768
A83: Agua - Poder Público - 4 - Fixo | B83: 43.56997231 | E83: 42.98020999 | G83: 38.0037459 | M83: 38 | N83: 0.003745904948
A84: Agua - Poder Público - 5 - Fixo | B84: 50.10546816 | E84: 49.42724149 | G84: 43.70430779 | M84: 43.7 | N84: 0.00430779069
A85: Agua - Poder Público - 6 - Fixo | B85: 57.62128839 | E85: 56.84132772 | G85: 50.25995396 | M85: 50.26 | N85: -4.604070644e-05
A86: CAT - Residencial - 1 - Fixo | B86: 17.60776341 | E86: 17.36942506 | G86: 15.35830599 | M86: 15.35830599 | N86: 0
A87: CAT - Residencial - 2 - Fixo | B87: 20.94436585 | E87: 20.66086331 | G87: 18.26864502 | M87: 18.26864502 | N87: 0
A88: CAT - Residencial - 3 - Fixo | B88: 24.93079348 | E88: 24.59333073 | G88: 21.74579166 | M88: 21.74579166 | N88: 0
A89: CAT - Residencial - 4 - Fixo | B89: 29.6670194 | E89: 29.26544719 | G89: 25.87694707 | M89: 25.87694707 | N89: 0
A90: CAT - Residencial - 5 - Fixo | B90: 35.30300329 | E90: 34.82514251 | G90: 30.792913 | M90: 30.792913 | N90: 0
A91: CAT - Residencial - 6 - Fixo | B91: 42.01369808 | E91: 41.44500146 | G91: 36.64629151 | M91: 36.64629151 | N91: 0
A92: CAT - Residencial Coletivo 1 - 1 - Fixo | B92: 35.20303019 | E92: 34.72652264 | G92: 30.70571183 | M92: 30.71 | N92: -0.004288170827
A93: CAT - Residencial Coletivo 1 - 2 - Fixo | B93: 41.90122833 | E93: 41.3340541 | G93: 36.54819019 | M93: 36.55 | N93: -0.001809810714
A94: CAT - Residencial Coletivo 1 - 3 - Fixo | B94: 49.86158695 | E94: 49.18666145 | G94: 43.49158332 | M94: 43.49 | N94: 0.001583315017
A95: CAT - Residencial Coletivo 1 - 4 - Fixo | B95: 59.33403881 | E95: 58.53089438 | G95: 51.75389413 | M95: 51.75 | N95: 0.00389413025
A96: CAT - Residencial Coletivo 1 - 5 - Fixo | B96: 70.60600659 | E96: 69.65028502 | G96: 61.585826 | M96: 61.59 | N96: -0.004174002545
A97: CAT - Residencial Coletivo 1 - 6 - Fixo | B97: 84.01489952 | E97: 82.87767543 | G97: 73.28168286 | M97: 73.28 | N97: 0.001682863874
A98: CAT - Residencial Coletivo 2 - 1 - Fixo | B98: 528.1204326 | E98: 520.9718044 | G98: 460.6510783 | M98: 460.65 | N98: 0.001078314767
A99: CAT - Residencial Coletivo 2 - 2 - Fixo | B99: 628.4684384 | E99: 619.9615015 | G99: 548.1792523 | M99: 548.18 | N99: -0.0007477454881
A100: CAT - Residencial Coletivo 2 - 3 - Fixo | B100: 747.8738177 | E100: 737.7506119 | G100: 652.3301491 | M100: 652.33 | N100: 0.0001491404728
A101: CAT - Residencial Coletivo 2 - 4 - Fixo | B101: 889.9730922 | E101: 877.9264333 | G101: 776.2757115 | M101: 776.28 | N101: -0.004288484827
A102: CAT - Residencial Coletivo 2 - 5 - Fixo | B102: 1059.065106 | E102: 1044.72962 | G102: 923.7655897 | M102: 923.77 | N102: -0.004410330569
A103: CAT - Residencial Coletivo 2 - 6 - Fixo | B103: 1260.285976 | E103: 1243.226769 | G103: 1099.279744 | M103: 1099.28 | N103: -0.0002563109201
A104: CAT - Residencial Coletivo 3 - 1 - Fixo | B104: 1390.71339 | E104: 1371.88872 | G104: 1213.04457 | M104: 1213.04 | N104: 0.00456951836
A105: CAT - Residencial Coletivo 3 - 2 - Fixo | B105: 1654.954808 | E105: 1632.553371 | G105: 1443.528161 | M105: 1443.53 | N105: -0.00183920444
A106: CAT - Residencial Coletivo 3 - 3 - Fixo | B106: 1969.395222 | E106: 1942.737525 | G106: 1717.797639 | M106: 1717.8 | N106: -0.002360664979
A107: CAT - Residencial Coletivo 3 - 4 - Fixo | B107: 2343.582063 | E107: 2311.859381 | G107: 2044.180717 | M107: 2044.18 | N107: 0.000716829142
A108: CAT - Residencial Coletivo 3 - 5 - Fixo | B108: 2788.86228 | E108: 2751.112293 | G108: 2432.574726 | M108: 2432.57 | N108: 0.004726022293
A109: CAT - Residencial Coletivo 3 - 6 - Fixo | B109: 3318.744739 | E109: 3273.822273 | G109: 2894.762725 | M109: 2894.76 | N109: 0.002724950447
A110: CAT - Residencial Coletivo 4 - 1 - Fixo | B110: 6284.634398 | E110: 6199.565706 | G110: 5481.748922 | M110: 5481.75 | N110: -0.001078039658
A111: CAT - Residencial Coletivo 4 - 2 - Fixo | B111: 7478.725681 | E111: 7377.493791 | G111: 6523.290591 | M111: 6523.29 | N111: 0.0005912585339
A112: CAT - Residencial Coletivo 4 - 3 - Fixo | B112: 8899.680936 | E112: 8779.215023 | G112: 7762.713515 | M112: 7762.71 | N112: 0.003514566954
A113: CAT - Residencial Coletivo 4 - 4 - Fixo | B113: 10590.61357 | E113: 10447.25922 | G113: 9237.623196 | M113: 9237.62 | N113: 0.00319625573
A114: CAT - Residencial Coletivo 4 - 5 - Fixo | B114: 12602.83477 | E114: 12432.24303 | G114: 10992.77564 | M114: 10992.78 | N114: -0.004363401591
A115: CAT - Residencial Coletivo 4 - 6 - Fixo | B115: 14997.36562 | E115: 14794.36157 | G115: 13081.39625 | M115: 13081.4 | N115: -0.00375053853
A116: CAT - Social II - 1 - Fixo | B116: 7.035607382 | E116: 6.940373533 | G116: 6.136782307 | M116: 6.14 | N116: -0.003217692643
A117: CAT - Social II - 2 - Fixo | B117: 8.385244322 | E117: 8.271741813 | G117: 7.313998096 | M117: 7.31 | N117: 0.003998096335
A118: CAT - Social II - 3 - Fixo | B118: 9.97231739 | E118: 9.837332291 | G118: 8.698316663 | M118: 8.7 | N118: -0.001683336997
A119: CAT - Social II - 4 - Fixo | B119: 11.87180642 | E119: 11.71110987 | G119: 10.35513888 | M119: 10.36 | N119: -0.004861115472
A120: CAT - Social II - 5 - Fixo | B120: 14.12120132 | E120: 13.930057 | G120: 12.3171652 | M120: 12.32 | N120: -0.002834800509
A121: CAT - Social II - 6 - Fixo | B121: 16.80797856 | E121: 16.58046608 | G121: 14.66069663 | M121: 14.66 | N121: 0.0006966312525
A122: CAT - Social I - 1 - Fixo | B122: 4.398816693 | E122: 4.339274394 | G122: 3.83685146 | M122: 3.84 | N122: -0.003148539628
A123: CAT - Social I - 2 - Fixo | B123: 5.236091462 | E123: 5.165215827 | G123: 4.567161255 | M123: 4.57 | N123: -0.002838744614
A124: CAT - Social I - 3 - Fixo | B124: 6.235822529 | E124: 6.151414553 | G124: 5.439172951 | M124: 5.44 | N124: -0.0008270490744
A125: CAT - Social I - 4 - Fixo | B125: 7.410506532 | E125: 7.310198056 | G125: 6.463786693 | M125: 6.46 | N125: 0.003786693184
A126: CAT - Social I - 5 - Fixo | B126: 8.822626664 | E126: 8.703203756 | G126: 7.695503213 | M126: 7.7 | N126: -0.004496786867
A127: CAT - Social I - 6 - Fixo | B127: 10.4971762 | E127: 10.35508662 | G127: 9.156122803 | M127: 9.16 | N127: -0.003877196839
A128: CAT - Comercial e Serviços - 1 - Fixo | B128: 22.00503652 | E128: 21.70717676 | G128: 19.19381106 | M128: 19.19 | N128: 0.003811063105
A129: CAT - Comercial e Serviços - 2 - Fixo | B129: 26.40604383 | E129: 26.04861212 | G129: 23.03257328 | M129: 23.03 | N129: 0.002573275726
A130: CAT - Comercial e Serviços - 3 - Fixo | B130: 33.00755478 | E130: 32.56076515 | G130: 28.79071659 | M130: 28.79 | N130: 0.0007165946575
A131: CAT - Comercial e Serviços - 4 - Fixo | B131: =E131*$D$2 -> 39.60906574 | E131: =G131*$H$1 -> 39.07291818 | G131: 34.54885991 | M131: 34.55 | N131: =G131-M131 -> -0.001140086411
A132: CAT - Comercial e Serviços - 5 - Fixo | B132: 47.53087889 | E132: 46.88750181 | G132: 41.4586319 | M132: 41.46 | N132: -0.001368103693
A133: CAT - Comercial e Serviços - 6 - Fixo | B133: 57.03705467 | E133: 56.26500217 | G133: 49.75035828 | M133: 49.75 | N133: 0.0003582755681
A134: CAT - Comercial Coletivo 1 - 1 - Fixo | B134: 44.01007304 | E134: 43.41435353 | G134: 38.38762213 | M134: 38.39 | N134: -0.00237787379
A135: CAT - Comercial Coletivo 1 - 2 - Fixo | B135: 52.81208765 | E135: 52.09722423 | G135: 46.06514655 | M135: 46.07 | N135: -0.004853448548
A136: CAT - Comercial Coletivo 1 - 3 - Fixo | B136: 66.01510957 | E136: 65.12153029 | G136: 57.58143319 | M136: 57.58 | N136: 0.001433189315
A137: CAT - Comercial Coletivo 1 - 4 - Fixo | B137: 79.21813148 | E137: 78.14583635 | G137: 69.09771983 | M137: 69.1 | N137: -0.002280172822
A138: CAT - Comercial Coletivo 1 - 5 - Fixo | B138: 95.06175778 | E138: 93.77500362 | G138: 82.91726379 | M138: 82.92 | N138: -0.002736207386
A139: CAT - Comercial Coletivo 1 - 6 - Fixo | B139: 114.0741093 | E139: 112.5300043 | G139: 99.50071655 | M139: 99.5 | N139: 0.0007165511362
A140: CAT - Comercial Coletivo 2 - 1 - Fixo | B140: 242.0554017 | E140: 238.7789444 | G140: 211.1319217 | M140: 211.13 | N140: 0.001921694155
A141: CAT - Comercial Coletivo 2 - 2 - Fixo | B141: 290.4664821 | E141: 286.5347333 | G141: 253.358306 | M141: 253.36 | N141: -0.001693967014
A142: CAT - Comercial Coletivo 2 - 3 - Fixo | B142: 363.0831026 | E142: 358.1684166 | G142: 316.6978825 | M142: 316.7 | N142: -0.002117458768
A143: CAT - Comercial Coletivo 2 - 4 - Fixo | B143: 435.6997231 | E143: 429.8020999 | G143: 380.037459 | M143: 380.04 | N143: -0.002540950521
A144: CAT - Comercial Coletivo 2 - 5 - Fixo | B144: 522.8396678 | E144: 515.7625199 | G144: 456.0449509 | M144: 456.04 | N144: 0.004950859374
A145: CAT - Comercial Coletivo 2 - 6 - Fixo | B145: 627.4076013 | E145: 618.9150239 | G145: 547.253941 | M145: 547.25 | N145: 0.003941031249
A146: CAT - Comercial Coletivo 3 - 1 - Fixo | B146: 2640.604383 | E146: 2604.861212 | G146: 2303.257328 | M146: 2303.26 | N146: -0.002672427402
A147: CAT - Comercial Coletivo 3 - 2 - Fixo | B147: 3168.725259 | E147: 3125.833454 | G147: 2763.908793 | M147: 2763.91 | N147: -0.001206912882
A148: CAT - Comercial Coletivo 3 - 3 - Fixo | B148: 3960.906574 | E148: 3907.291818 | G148: 3454.885991 | M148: 3454.89 | N148: -0.004008641103
A149: CAT - Comercial Coletivo 3 - 4 - Fixo | B149: 4753.087889 | E149: 4688.750181 | G149: 4145.86319 | M149: 4145.86 | N149: 0.003189630677
A150: CAT - Comercial Coletivo 3 - 5 - Fixo | B150: 5703.705467 | E150: 5626.500217 | G150: 4975.035828 | M150: 4975.04 | N150: -0.004172443188
A151: CAT - Comercial Coletivo 3 - 6 - Fixo | B151: 6844.44656 | E151: 6751.800261 | G151: 5970.042993 | M151: 5970.04 | N151: 0.002993068174
A152: CAT - Comercial Coletivo 4 - 1 - Fixo | B152: 6249.430372 | E152: 6164.838201 | G152: 5451.042342 | M152: 5451.04 | N152: 0.002341921815
A153: CAT - Comercial Coletivo 4 - 2 - Fixo | B153: 7499.316447 | E153: 7397.805841 | G153: 6541.25081 | M153: 6541.25 | N153: 0.0008103061791
A154: CAT - Comercial Coletivo 4 - 3 - Fixo | B154: 9374.145558 | E154: 9247.257301 | G154: 8176.563513 | M154: 8176.56 | N154: 0.003512882724
A155: CAT - Comercial Coletivo 4 - 4 - Fixo | B155: 11248.97467 | E155: 11096.70876 | G155: 9811.876215 | M155: 9811.88 | N155: -0.003784540731
A156: CAT - Comercial Coletivo 4 - 5 - Fixo | B156: 13498.7696 | E156: 13316.05051 | G156: 11774.25146 | M156: 11774.25 | N156: 0.00145855112
A157: CAT - Comercial Coletivo 4 - 6 - Fixo | B157: 16198.52352 | E157: 15979.26062 | G157: 14129.10175 | M157: 14129.1 | N157: 0.001750261345
A158: CAT - Industrial - 1 - Fixo | B158: 48.41108035 | E158: 47.75578888 | G158: 42.22638434 | M158: 42.23 | N158: -0.003615661169
A159: CAT - Industrial - 2 - Fixo | B159: 58.09329642 | E159: 57.30694666 | G159: 50.67166121 | M159: 50.67 | N159: 0.001661206597
A160: CAT - Industrial - 3 - Fixo | B160: 69.7119557 | E160: 68.76833599 | G160: 60.80599345 | M160: 60.81 | N160: -0.004006552083
A161: CAT - Industrial - 4 - Fixo | B161: 83.65434684 | E161: 82.52200319 | G161: 72.96719214 | M161: 72.97 | N161: -0.0028078625
A162: CAT - Industrial - 5 - Fixo | B162: 96.20249887 | E162: 94.90030366 | G162: 83.91227096 | M162: 83.91 | N162: 0.002270958125
A163: CAT - Industrial - 6 - Fixo | B163: 110.6328737 | E163: 109.1353492 | G163: 96.4991116 | M163: 96.5 | N163: -0.0008883981564
A164: CAT - Poder Público - 1 - Fixo | B164: 24.20554017 | E164: 23.87789444 | G164: 21.11319217 | M164: 21.11 | N164: 0.003192169415
A165: CAT - Poder Público - 2 - Fixo | B165: 29.04664821 | E165: 28.65347333 | G165: 25.3358306 | M165: 25.34 | N165: -0.004169396701
A166: CAT - Poder Público - 3 - Fixo | B166: 36.30831026 | E166: 35.81684166 | G166: 31.66978825 | M166: 31.67 | N166: -0.0002117458768
A167: CAT - Poder Público - 4 - Fixo | B167: 43.56997231 | E167: 42.98020999 | G167: 38.0037459 | M167: 38 | N167: 0.003745904948
A168: CAT - Poder Público - 5 - Fixo | B168: 50.10546816 | E168: 49.42724149 | G168: 43.70430779 | M168: 43.7 | N168: 0.00430779069
A169: CAT - Poder Público - 6 - Fixo | B169: 57.62128839 | E169: 56.84132772 | G169: 50.25995396 | M169: 50.26 | N169: -4.604070644e-05
A170: CA - Residencial - 1 - Fixo | B170: 13.42138957 | E170: 13.2397179 | G170: 11.70675701 | M170: 11.71 | N170: -0.003242987386
A171: CA - Residencial - 2 - Fixo | B171: 15.97070379 | E171: 15.75452465 | G171: 13.93038684 | M171: 13.93 | N171: 0.0003868362384
A172: CA - Residencial - 3 - Fixo | B172: 19.00738691 | E172: 18.75010328 | G172: 16.57912236 | M172: 16.58 | N172: -0.0008776385613
A173: CA - Residencial - 4 - Fixo | B173: 22.61891538 | E173: 22.31274617 | G173: 19.72926461 | M173: 19.73 | N173: -0.000735388426
A174: CA - Residencial - 5 - Fixo | B174: 26.91775897 | E174: 26.55340069 | G174: 23.4789149 | M174: 23.48 | N174: -0.001085097608
A175: CA - Residencial - 6 - Fixo | B175: 32.02888405 | E175: 31.59534168 | G175: 27.9370747 | M175: 27.94 | N175: -0.002925304163
A176: CA - Residencial Coletivo 1 - 1 - Fixo | B176: 26.84277914 | E176: 26.47943579 | G176: 23.41351403 | M176: 23.41 | N176: 0.003514025227
A177: CA - Residencial Coletivo 1 - 2 - Fixo | B177: 31.94140758 | E177: 31.50904929 | G177: 27.86077367 | M177: 27.86 | N177: 0.0007736724768
A178: CA - Residencial Coletivo 1 - 3 - Fixo | B178: 38.01477381 | E178: 37.50020655 | G178: 33.15824472 | M178: 33.16 | N178: -0.001755277123
A179: CA - Residencial Coletivo 1 - 4 - Fixo | B179: 45.23783077 | E179: 44.62549235 | G179: 39.45852922 | M179: 39.46 | N179: -0.001470776852
A180: CA - Residencial Coletivo 1 - 5 - Fixo | B180: 53.83551794 | E180: 53.10680139 | G180: 46.9578298 | M180: 46.96 | N180: -0.002170195215
A181: CA - Residencial Coletivo 1 - 6 - Fixo | B181: 64.07026474 | E181: 63.20301085 | G181: 55.88504954 | M181: 55.89 | N181: -0.004950462133
A182: CA - Residencial Coletivo 2 - 1 - Fixo | B182: 402.6916737 | E182: 397.2408468 | G182: 351.246311 | M182: 351.25 | N182: -0.003689036818
A183: CA - Residencial Coletivo 2 - 2 - Fixo | B183: 479.2085902 | E183: 472.7220318 | G183: 417.9879061 | M183: 417.99 | N183: -0.002093889488
A184: CA - Residencial Coletivo 2 - 3 - Fixo | B184: 570.2466004 | E184: 562.5277532 | G184: 497.3954711 | M184: 497.4 | N184: -0.004528864451
A185: CA - Residencial Coletivo 2 - 4 - Fixo | B185: 678.6049514 | E185: 669.4193676 | G185: 591.9106388 | M185: 591.91 | N185: 0.0006387858018
A186: CA - Residencial Coletivo 2 - 5 - Fixo | B186: 807.5327691 | E186: 796.6020208 | G186: 704.3674471 | M186: 704.37 | N186: -0.002552928227
A187: CA - Residencial Coletivo 2 - 6 - Fixo | B187: 960.9664946 | E187: 947.9588703 | G187: 838.199442 | M187: 838.2 | N187: -0.0005579553508
A188: CA - Residencial Coletivo 3 - 1 - Fixo | B188: 1060.427239 | E188: 1046.073316 | G188: 924.9537056 | M188: 924.95 | N188: 0.003705604603
A189: CA - Residencial Coletivo 3 - 2 - Fixo | B189: 1261.898042 | E189: 1244.817014 | G189: 1100.685863 | M189: 1100.69 | N189: -0.004137451863
A190: CA - Residencial Coletivo 3 - 3 - Fixo | B190: 1501.658545 | E190: 1481.332124 | G190: 1309.816067 | M190: 1309.82 | N190: -0.003932569179
A191: CA - Residencial Coletivo 3 - 4 - Fixo | B191: 1786.981792 | E191: 1762.79324 | G191: 1558.688205 | M191: 1558.69 | N191: -0.001794662297
A192: CA - Residencial Coletivo 3 - 5 - Fixo | B192: 2126.502959 | E192: 2097.718655 | G192: 1854.834277 | M192: 1854.83 | N192: 0.004277289003
A193: CA - Residencial Coletivo 3 - 6 - Fixo | B193: 2530.544269 | E193: 2496.29087 | G193: 2207.257804 | M193: 2207.26 | N193: -0.002195958837
A194: CA - Residencial Coletivo 4 - 1 - Fixo | B194: 4792.035915 | E194: 4727.171008 | G194: 4179.835461 | M194: 4179.84 | N194: -0.004539479656
A195: CA - Residencial Coletivo 4 - 2 - Fixo | B195: =E195*$D$2 -> 5702.528488 | E195: =G195*$H$1 -> 5625.33917 | G195: 4974.009212 | M195: 4974.01 | N195: =G195-M195 -> -0.000787913541
A196: CA - Residencial Coletivo 4 - 3 - Fixo | B196: 6785.999528 | E196: 6694.144367 | G196: 5919.062787 | M196: 5919.06 | N196: 0.002787273241
A197: CA - Residencial Coletivo 4 - 4 - Fixo | B197: 8075.340188 | E197: 7966.032536 | G197: 7043.685371 | M197: 7043.69 | N197: -0.004629136071
A198: CA - Residencial Coletivo 4 - 5 - Fixo | B198: 9609.664946 | E198: 9479.588703 | G198: 8381.99442 | M198: 8381.99 | N198: 0.004420446492
A199: CA - Residencial Coletivo 4 - 6 - Fixo | B199: 11435.49879 | E199: 11280.70809 | G199: 9974.57118 | M199: 9974.57 | N199: 0.001180302088
A200: CA - Social II - 1 - Fixo | B200: 5.373554483 | E200: 5.300818152 | G200: 4.687062864 | M200: 4.69 | N200: -0.002937136477
... 473 more rows

Sheet Faixas (hidden)
A1: Descrip. | B1: Faixa
A2: Residencial - 1 | B2: 10
A3: Residencial - 2 | B3: 15
A4: Residencial - 3 | B4: 20
A5: Residencial - 4 | B5: 30
A6: Residencial - 5 | B6: 50
A7: Residencial - 6 | B7: 999999
A8: Residencial Coletivo 1 - 1 | B8: 20
A9: Residencial Coletivo 1 - 2 | B9: 30
A10: Residencial Coletivo 1 - 3 | B10: 40
A11: Residencial Coletivo 1 - 4 | B11: 60
A12: Residencial Coletivo 1 - 5 | B12: 100
A13: Residencial Coletivo 1 - 6 | B13: 999999
A14: Residencial Coletivo 2 - 1 | B14: 300
A15: Residencial Coletivo 2 - 2 | B15: 450
A16: Residencial Coletivo 2 - 3 | B16: 600
A17: Residencial Coletivo 2 - 4 | B17: 900
A18: Residencial Coletivo 2 - 5 | B18: 1500
A19: Residencial Coletivo 2 - 6 | B19: 999999
A20: Residencial Coletivo 3 - 1 | B20: 790
A21: Residencial Coletivo 3 - 2 | B21: 1185
A22: Residencial Coletivo 3 - 3 | B22: 1580
A23: Residencial Coletivo 3 - 4 | B23: 2370
A24: Residencial Coletivo 3 - 5 | B24: 3950
A25: Residencial Coletivo 3 - 6 | B25: 999999
A26: Residencial Coletivo 4 - 1 | B26: 3570
A27: Residencial Coletivo 4 - 2 | B27: 5355
A28: Residencial Coletivo 4 - 3 | B28: 7140
A29: Residencial Coletivo 4 - 4 | B29: 10710
A30: Residencial Coletivo 4 - 5 | B30: 17850
A31: Residencial Coletivo 4 - 6 | B31: 999999
A32: Social II - 1 | B32: 10
A33: Social II - 2 | B33: 15
A34: Social II - 3 | B34: 20
A35: Social II - 4 | B35: 30
A36: Social II - 5 | B36: 50
A37: Social II - 6 | B37: 999999
A38: Social I - 1 | B38: 10
A39: Social I - 2 | B39: 15
A40: Social I - 3 | B40: 20
A41: Social I - 4 | B41: 30
A42: Social I - 5 | B42: 50
A43: Social I - 6 | B43: 999999
A44: Comercial e Serviços - 1 | B44: 10
A45: Comercial e Serviços - 2 | B45: 15
A46: Comercial e Serviços - 3 | B46: 20
A47: Comercial e Serviços - 4 | B47: 30
A48: Comercial e Serviços - 5 | B48: 50
A49: Comercial e Serviços - 6 | B49: 999999
A50: Comercial Coletivo 1 - 1 | B50: 20
A51: Comercial Coletivo 1 - 2 | B51: 30
A52: Comercial Coletivo 1 - 3 | B52: 40
A53: Comercial Coletivo 1 - 4 | B53: 60
A54: Comercial Coletivo 1 - 5 | B54: 100
A55: Comercial Coletivo 1 - 6 | B55: 999999
A56: Comercial Coletivo 2 - 1 | B56: 110
A57: Comercial Coletivo 2 - 2 | B57: 165
A58: Comercial Coletivo 2 - 3 | B58: 220
A59: Comercial Coletivo 2 - 4 | B59: 330
A60: Comercial Coletivo 2 - 5 | B60: 550
A61: Comercial Coletivo 2 - 6 | B61: 999999
A62: Comercial Coletivo 3 - 1 | B62: 1200
A63: Comercial Coletivo 3 - 2 | B63: 1800
A64: Comercial Coletivo 3 - 3 | B64: 2400
A65: Comercial Coletivo 3 - 4 | B65: 3600
A66: Comercial Coletivo 3 - 5 | B66: 6000
A67: Comercial Coletivo 3 - 6 | B67: 999999
A68: Comercial Coletivo 4 - 1 | B68: 2840
A69: Comercial Coletivo 4 - 2 | B69: 4260
A70: Comercial Coletivo 4 - 3 | B70: 5680
A71: Comercial Coletivo 4 - 4 | B71: 8520
A72: Comercial Coletivo 4 - 5 | B72: 14200
A73: Comercial Coletivo 4 - 6 | B73: 999999
A74: Industrial - 1 | B74: 10
A75: Industrial - 2 | B75: 15
A76: Industrial - 3 | B76: 20
A77: Industrial - 4 | B77: 30
A78: Industrial - 5 | B78: 50
A79: Industrial - 6 | B79: 999999
A80: Poder Público - 1 | B80: 10
A81: Poder Público - 2 | B81: 15
A82: Poder Público - 3 | B82: 20
A83: Poder Público - 4 | B83: 30
A84: Poder Público - 5 | B84: 50
A85: Poder Público - 6 | B85: 999999

Sheet TarifasVelhas (hidden)
A1: Descrip. | B1: Tarifa
A2: Agua - Residencial - 1 - Fixo | B2: =Tarifas!E2 -> 21.70717676
A3: Agua - Residencial - 2 - Fixo | B3: =Tarifas!E3 -> 25.83154035
A4: Agua - Residencial - 3 - Fixo | B4: =Tarifas!E4 -> 30.73953302
A5: Agua - Residencial - 4 - Fixo | B5: =Tarifas!E5 -> 36.58004429
A6: Agua - Residencial - 5 - Fixo | B6: =Tarifas!E6 -> 43.5302527
A7: Agua - Residencial - 6 - Fixo | B7: =Tarifas!E7 -> 51.80100072
A8: Agua - Residencial Coletivo 1 - 1 - Fixo | B8: =Tarifas!E8 -> 43.41435353
A9: Agua - Residencial Coletivo 1 - 2 - Fixo | B9: =Tarifas!E9 -> 51.6630807
A10: Agua - Residencial Coletivo 1 - 3 - Fixo | B10: =Tarifas!E10 -> 61.47906603
A11: Agua - Residencial Coletivo 1 - 4 - Fixo | B11: =Tarifas!E11 -> 73.16008858
A12: Agua - Residencial Coletivo 1 - 5 - Fixo | B12: =Tarifas!E12 -> 87.06050541
A13: Agua - Residencial Coletivo 1 - 6 - Fixo | B13: =Tarifas!E13 -> 103.6020014
A14: Agua - Residencial Coletivo 2 - 1 - Fixo | B14: =Tarifas!E14 -> 651.2153029
A15: Agua - Residencial Coletivo 2 - 2 - Fixo | B15: =Tarifas!E15 -> 774.9462105
A16: Agua - Residencial Coletivo 2 - 3 - Fixo | B16: =Tarifas!E16 -> 922.1859905
A17: Agua - Residencial Coletivo 2 - 4 - Fixo | B17: =Tarifas!E17 -> 1097.401329
A18: Agua - Residencial Coletivo 2 - 5 - Fixo | B18: =Tarifas!E18 -> 1305.907581
A19: Agua - Residencial Coletivo 2 - 6 - Fixo | B19: =Tarifas!E19 -> 1554.030022
A20: Agua - Residencial Coletivo 3 - 1 - Fixo | B20: =Tarifas!E20 -> 1714.866964
A21: Agua - Residencial Coletivo 3 - 2 - Fixo | B21: =Tarifas!E21 -> 2040.691688
A22: Agua - Residencial Coletivo 3 - 3 - Fixo | B22: =Tarifas!E22 -> 2428.423108
A23: Agua - Residencial Coletivo 3 - 4 - Fixo | B23: =Tarifas!E23 -> 2889.823499
A24: Agua - Residencial Coletivo 3 - 5 - Fixo | B24: =Tarifas!E24 -> 3438.889964
A25: Agua - Residencial Coletivo 3 - 6 - Fixo | B25: =Tarifas!E25 -> 4092.279057
A26: Agua - Residencial Coletivo 4 - 1 - Fixo | B26: =Tarifas!E26 -> 7749.462105
A27: Agua - Residencial Coletivo 4 - 2 - Fixo | B27: =Tarifas!E27 -> 9221.859905
A28: Agua - Residencial Coletivo 4 - 3 - Fixo | B28: =Tarifas!E28 -> 10974.01329
A29: Agua - Residencial Coletivo 4 - 4 - Fixo | B29: =Tarifas!E29 -> 13059.07581
A30: Agua - Residencial Coletivo 4 - 5 - Fixo | B30: =Tarifas!E30 -> 15540.30022
A31: Agua - Residencial Coletivo 4 - 6 - Fixo | B31: =Tarifas!E31 -> 18492.95726
A32: Agua - Social II - 1 - Fixo | B32: =Tarifas!E32 -> 8.682870706
A33: Agua - Social II - 2 - Fixo | B33: =Tarifas!E33 -> 10.33261614
A34: Agua - Social II - 3 - Fixo | B34: =Tarifas!E34 -> 12.29581321
A35: Agua - Social II - 4 - Fixo | B35: =Tarifas!E35 -> 14.63201772
A36: Agua - Social II - 5 - Fixo | B36: =Tarifas!E36 -> 17.41210108
A37: Agua - Social II - 6 - Fixo | B37: =Tarifas!E37 -> 20.72040029
A38: Agua - Social I - 1 - Fixo | B38: =Tarifas!E38 -> 5.426794191
A39: Agua - Social I - 2 - Fixo | B39: =Tarifas!E39 -> 6.457885087
A40: Agua - Social I - 3 - Fixo | B40: =Tarifas!E40 -> 7.684883254
A41: Agua - Social I - 4 - Fixo | B41: =Tarifas!E41 -> 9.145011072
A42: Agua - Social I - 5 - Fixo | B42: =Tarifas!E42 -> 10.88256318
A43: Agua - Social I - 6 - Fixo | B43: =Tarifas!E43 -> 12.95025018
A44: Agua - Comercial e Serviços - 1 - Fixo | B44: =Tarifas!E44 -> 21.70717676
A45: Agua - Comercial e Serviços - 2 - Fixo | B45: =Tarifas!E45 -> 26.04861212
A46: Agua - Comercial e Serviços - 3 - Fixo | B46: =Tarifas!E46 -> 32.56076515
A47: Agua - Comercial e Serviços - 4 - Fixo | B47: =Tarifas!E47 -> 39.07291818
A48: Agua - Comercial e Serviços - 5 - Fixo | B48: =Tarifas!E48 -> 46.88750181
A49: Agua - Comercial e Serviços - 6 - Fixo | B49: =Tarifas!E49 -> 56.26500217
A50: Agua - Comercial Coletivo 1 - 1 - Fixo | B50: =Tarifas!E50 -> 43.41435353
A51: Agua - Comercial Coletivo 1 - 2 - Fixo | B51: =Tarifas!E51 -> 52.09722423
A52: Agua - Comercial Coletivo 1 - 3 - Fixo | B52: =Tarifas!E52 -> 65.12153029
A53: Agua - Comercial Coletivo 1 - 4 - Fixo | B53: =Tarifas!E53 -> 78.14583635
A54: Agua - Comercial Coletivo 1 - 5 - Fixo | B54: =Tarifas!E54 -> 93.77500362
A55: Agua - Comercial Coletivo 1 - 6 - Fixo | B55: =Tarifas!E55 -> 112.5300043
A56: Agua - Comercial Coletivo 2 - 1 - Fixo | B56: =Tarifas!E56 -> 238.7789444
A57: Agua - Comercial Coletivo 2 - 2 - Fixo | B57: =Tarifas!E57 -> 286.5347333
A58: Agua - Comercial Coletivo 2 - 3 - Fixo | B58: =Tarifas!E58 -> 358.1684166
A59: Agua - Comercial Coletivo 2 - 4 - Fixo | B59: =Tarifas!E59 -> 429.8020999
A60: Agua - Comercial Coletivo 2 - 5 - Fixo | B60: =Tarifas!E60 -> 515.7625199
A61: Agua - Comercial Coletivo 2 - 6 - Fixo | B61: =Tarifas!E61 -> 618.9150239
A62: Agua - Comercial Coletivo 3 - 1 - Fixo | B62: =Tarifas!E62 -> 2604.861212
A63: Agua - Comercial Coletivo 3 - 2 - Fixo | B63: =Tarifas!E63 -> 3125.833454
A64: Agua - Comercial Coletivo 3 - 3 - Fixo | B64: =Tarifas!E64 -> 3907.291818
A65: Agua - Comercial Coletivo 3 - 4 - Fixo | B65: =Tarifas!E65 -> 4688.750181
A66: Agua - Comercial Coletivo 3 - 5 - Fixo | B66: =Tarifas!E66 -> 5626.500217
A67: Agua - Comercial Coletivo 3 - 6 - Fixo | B67: =Tarifas!E67 -> 6751.800261
A68: Agua - Comercial Coletivo 4 - 1 - Fixo | B68: =Tarifas!E68 -> 6164.838201
A69: Agua - Comercial Coletivo 4 - 2 - Fixo | B69: =Tarifas!E69 -> 7397.805841
A70: Agua - Comercial Coletivo 4 - 3 - Fixo | B70: =Tarifas!E70 -> 9247.257301
A71: Agua - Comercial Coletivo 4 - 4 - Fixo | B71: =Tarifas!E71 -> 11096.70876
A72: Agua - Comercial Coletivo 4 - 5 - Fixo | B72: =Tarifas!E72 -> 13316.05051
A73: Agua - Comercial Coletivo 4 - 6 - Fixo | B73: =Tarifas!E73 -> 15979.26062
A74: Agua - Industrial - 1 - Fixo | B74: =Tarifas!E74 -> 47.75578888
A75: Agua - Industrial - 2 - Fixo | B75: =Tarifas!E75 -> 57.30694666
A76: Agua - Industrial - 3 - Fixo | B76: =Tarifas!E76 -> 68.76833599
A77: Agua - Industrial - 4 - Fixo | B77: =Tarifas!E77 -> 82.52200319
A78: Agua - Industrial - 5 - Fixo | B78: =Tarifas!E78 -> 94.90030366
A79: Agua - Industrial - 6 - Fixo | B79: =Tarifas!E79 -> 109.1353492
A80: Agua - Poder Público - 1 - Fixo | B80: =Tarifas!E80 -> 23.87789444
A81: Agua - Poder Público - 2 - Fixo | B81: =Tarifas!E81 -> 28.65347333
A82: Agua - Poder Público - 3 - Fixo | B82: =Tarifas!E82 -> 35.81684166
A83: Agua - Poder Público - 4 - Fixo | B83: =Tarifas!E83 -> 42.98020999
A84: Agua - Poder Público - 5 - Fixo | B84: =Tarifas!E84 -> 49.42724149
A85: Agua - Poder Público - 6 - Fixo | B85: =Tarifas!E85 -> 56.84132772
A86: CAT - Residencial - 1 - Fixo | B86: =Tarifas!E86 -> 17.36942506
A87: CAT - Residencial - 2 - Fixo | B87: =Tarifas!E87 -> 20.66086331
A88: CAT - Residencial - 3 - Fixo | B88: =Tarifas!E88 -> 24.59333073
A89: CAT - Residencial - 4 - Fixo | B89: =Tarifas!E89 -> 29.26544719
A90: CAT - Residencial - 5 - Fixo | B90: =Tarifas!E90 -> 34.82514251
A91: CAT - Residencial - 6 - Fixo | B91: =Tarifas!E91 -> 41.44500146
A92: CAT - Residencial Coletivo 1 - 1 - Fixo | B92: =Tarifas!E92 -> 34.72652264
A93: CAT - Residencial Coletivo 1 - 2 - Fixo | B93: =Tarifas!E93 -> 41.3340541
A94: CAT - Residencial Coletivo 1 - 3 - Fixo | B94: =Tarifas!E94 -> 49.18666145
A95: CAT - Residencial Coletivo 1 - 4 - Fixo | B95: =Tarifas!E95 -> 58.53089438
A96: CAT - Residencial Coletivo 1 - 5 - Fixo | B96: =Tarifas!E96 -> 69.65028502
A97: CAT - Residencial Coletivo 1 - 6 - Fixo | B97: =Tarifas!E97 -> 82.87767543
A98: CAT - Residencial Coletivo 2 - 1 - Fixo | B98: =Tarifas!E98 -> 520.9718044
A99: CAT - Residencial Coletivo 2 - 2 - Fixo | B99: =Tarifas!E99 -> 619.9615015
A100: CAT - Residencial Coletivo 2 - 3 - Fixo | B100: =Tarifas!E100 -> 737.7506119
A101: CAT - Residencial Coletivo 2 - 4 - Fixo | B101: =Tarifas!E101 -> 877.9264333
A102: CAT - Residencial Coletivo 2 - 5 - Fixo | B102: =Tarifas!E102 -> 1044.72962
A103: CAT - Residencial Coletivo 2 - 6 - Fixo | B103: =Tarifas!E103 -> 1243.226769
A104: CAT - Residencial Coletivo 3 - 1 - Fixo | B104: =Tarifas!E104 -> 1371.88872
A105: CAT - Residencial Coletivo 3 - 2 - Fixo | B105: =Tarifas!E105 -> 1632.553371
A106: CAT - Residencial Coletivo 3 - 3 - Fixo | B106: =Tarifas!E106 -> 1942.737525
A107: CAT - Residencial Coletivo 3 - 4 - Fixo | B107: =Tarifas!E107 -> 2311.859381
A108: CAT - Residencial Coletivo 3 - 5 - Fixo | B108: =Tarifas!E108 -> 2751.112293
A109: CAT - Residencial Coletivo 3 - 6 - Fixo | B109: =Tarifas!E109 -> 3273.822273
A110: CAT - Residencial Coletivo 4 - 1 - Fixo | B110: =Tarifas!E110 -> 6199.565706
A111: CAT - Residencial Coletivo 4 - 2 - Fixo | B111: =Tarifas!E111 -> 7377.493791
A112: CAT - Residencial Coletivo 4 - 3 - Fixo | B112: =Tarifas!E112 -> 8779.215023
A113: CAT - Residencial Coletivo 4 - 4 - Fixo | B113: =Tarifas!E113 -> 10447.25922
A114: CAT - Residencial Coletivo 4 - 5 - Fixo | B114: =Tarifas!E114 -> 12432.24303
A115: CAT - Residencial Coletivo 4 - 6 - Fixo | B115: =Tarifas!E115 -> 14794.36157
A116: CAT - Social II - 1 - Fixo | B116: =Tarifas!E116 -> 6.940373533
A117: CAT - Social II - 2 - Fixo | B117: =Tarifas!E117 -> 8.271741813
A118: CAT - Social II - 3 - Fixo | B118: =Tarifas!E118 -> 9.837332291
A119: CAT - Social II - 4 - Fixo | B119: =Tarifas!E119 -> 11.71110987
A120: CAT - Social II - 5 - Fixo | B120: =Tarifas!E120 -> 13.930057
A121: CAT - Social II - 6 - Fixo | B121: =Tarifas!E121 -> 16.58046608
A122: CAT - Social I - 1 - Fixo | B122: =Tarifas!E122 -> 4.339274394
A123: CAT - Social I - 2 - Fixo | B123: =Tarifas!E123 -> 5.165215827
A124: CAT - Social I - 3 - Fixo | B124: =Tarifas!E124 -> 6.151414553
A125: CAT - Social I - 4 - Fixo | B125: =Tarifas!E125 -> 7.310198056
A126: CAT - Social I - 5 - Fixo | B126: =Tarifas!E126 -> 8.703203756
A127: CAT - Social I - 6 - Fixo | B127: =Tarifas!E127 -> 10.35508662
A128: CAT - Comercial e Serviços - 1 - Fixo | B128: =Tarifas!E128 -> 21.70717676
A129: CAT - Comercial e Serviços - 2 - Fixo | B129: =Tarifas!E129 -> 26.04861212
A130: CAT - Comercial e Serviços - 3 - Fixo | B130: =Tarifas!E130 -> 32.56076515
A131: CAT - Comercial e Serviços - 4 - Fixo | B131: =Tarifas!E131 -> 39.07291818
A132: CAT - Comercial e Serviços - 5 - Fixo | B132: =Tarifas!E132 -> 46.88750181
A133: CAT - Comercial e Serviços - 6 - Fixo | B133: =Tarifas!E133 -> 56.26500217
A134: CAT - Comercial Coletivo 1 - 1 - Fixo | B134: =Tarifas!E134 -> 43.41435353
A135: CAT - Comercial Coletivo 1 - 2 - Fixo | B135: =Tarifas!E135 -> 52.09722423
A136: CAT - Comercial Coletivo 1 - 3 - Fixo | B136: =Tarifas!E136 -> 65.12153029
A137: CAT - Comercial Coletivo 1 - 4 - Fixo | B137: =Tarifas!E137 -> 78.14583635
A138: CAT - Comercial Coletivo 1 - 5 - Fixo | B138: =Tarifas!E138 -> 93.77500362
A139: CAT - Comercial Coletivo 1 - 6 - Fixo | B139: =Tarifas!E139 -> 112.5300043
A140: CAT - Comercial Coletivo 2 - 1 - Fixo | B140: =Tarifas!E140 -> 238.7789444
A141: CAT - Comercial Coletivo 2 - 2 - Fixo | B141: =Tarifas!E141 -> 286.5347333
A142: CAT - Comercial Coletivo 2 - 3 - Fixo | B142: =Tarifas!E142 -> 358.1684166
A143: CAT - Comercial Coletivo 2 - 4 - Fixo | B143: =Tarifas!E143 -> 429.8020999
A144: CAT - Comercial Coletivo 2 - 5 - Fixo | B144: =Tarifas!E144 -> 515.7625199
A145: CAT - Comercial Coletivo 2 - 6 - Fixo | B145: =Tarifas!E145 -> 618.9150239
A146: CAT - Comercial Coletivo 3 - 1 - Fixo | B146: =Tarifas!E146 -> 2604.861212
A147: CAT - Comercial Coletivo 3 - 2 - Fixo | B147: =Tarifas!E147 -> 3125.833454
A148: CAT - Comercial Coletivo 3 - 3 - Fixo | B148: =Tarifas!E148 -> 3907.291818
A149: CAT - Comercial Coletivo 3 - 4 - Fixo | B149: =Tarifas!E149 -> 4688.750181
A150: CAT - Comercial Coletivo 3 - 5 - Fixo | B150: =Tarifas!E150 -> 5626.500217
A151: CAT - Comercial Coletivo 3 - 6 - Fixo | B151: =Tarifas!E151 -> 6751.800261
A152: CAT - Comercial Coletivo 4 - 1 - Fixo | B152: =Tarifas!E152 -> 6164.838201
A153: CAT - Comercial Coletivo 4 - 2 - Fixo | B153: =Tarifas!E153 -> 7397.805841
A154: CAT - Comercial Coletivo 4 - 3 - Fixo | B154: =Tarifas!E154 -> 9247.257301
A155: CAT - Comercial Coletivo 4 - 4 - Fixo | B155: =Tarifas!E155 -> 11096.70876
A156: CAT - Comercial Coletivo 4 - 5 - Fixo | B156: =Tarifas!E156 -> 13316.05051
A157: CAT - Comercial Coletivo 4 - 6 - Fixo | B157: =Tarifas!E157 -> 15979.26062
A158: CAT - Industrial - 1 - Fixo | B158: =Tarifas!E158 -> 47.75578888
A159: CAT - Industrial - 2 - Fixo | B159: =Tarifas!E159 -> 57.30694666
A160: CAT - Industrial - 3 - Fixo | B160: =Tarifas!E160 -> 68.76833599
A161: CAT - Industrial - 4 - Fixo | B161: =Tarifas!E161 -> 82.52200319
A162: CAT - Industrial - 5 - Fixo | B162: =Tarifas!E162 -> 94.90030366
A163: CAT - Industrial - 6 - Fixo | B163: =Tarifas!E163 -> 109.1353492
A164: CAT - Poder Público - 1 - Fixo | B164: =Tarifas!E164 -> 23.87789444
A165: CAT - Poder Público - 2 - Fixo | B165: =Tarifas!E165 -> 28.65347333
A166: CAT - Poder Público - 3 - Fixo | B166: =Tarifas!E166 -> 35.81684166
A167: CAT - Poder Público - 4 - Fixo | B167: =Tarifas!E167 -> 42.98020999
A168: CAT - Poder Público - 5 - Fixo | B168: =Tarifas!E168 -> 49.42724149
A169: CAT - Poder Público - 6 - Fixo | B169: =Tarifas!E169 -> 56.84132772
A170: CA - Residencial - 1 - Fixo | B170: =Tarifas!E170 -> 13.2397179
A171: CA - Residencial - 2 - Fixo | B171: =Tarifas!E171 -> 15.75452465
A172: CA - Residencial - 3 - Fixo | B172: =Tarifas!E172 -> 18.75010328
A173: CA - Residencial - 4 - Fixo | B173: =Tarifas!E173 -> 22.31274617
A174: CA - Residencial - 5 - Fixo | B174: =Tarifas!E174 -> 26.55340069
A175: CA - Residencial - 6 - Fixo | B175: =Tarifas!E175 -> 31.59534168
A176: CA - Residencial Coletivo 1 - 1 - Fixo | B176: =Tarifas!E176 -> 26.47943579
A177: CA - Residencial Coletivo 1 - 2 - Fixo | B177: =Tarifas!E177 -> 31.50904929
A178: CA - Residencial Coletivo 1 - 3 - Fixo | B178: =Tarifas!E178 -> 37.50020655
A179: CA - Residencial Coletivo 1 - 4 - Fixo | B179: =Tarifas!E179 -> 44.62549235
A180: CA - Residencial Coletivo 1 - 5 - Fixo | B180: =Tarifas!E180 -> 53.10680139
A181: CA - Residencial Coletivo 1 - 6 - Fixo | B181: =Tarifas!E181 -> 63.20301085
A182: CA - Residencial Coletivo 2 - 1 - Fixo | B182: =Tarifas!E182 -> 397.2408468
A183: CA - Residencial Coletivo 2 - 2 - Fixo | B183: =Tarifas!E183 -> 472.7220318
A184: CA - Residencial Coletivo 2 - 3 - Fixo | B184: =Tarifas!E184 -> 562.5277532
A185: CA - Residencial Coletivo 2 - 4 - Fixo | B185: =Tarifas!E185 -> 669.4193676
A186: CA - Residencial Coletivo 2 - 5 - Fixo | B186: =Tarifas!E186 -> 796.6020208
A187: CA - Residencial Coletivo 2 - 6 - Fixo | B187: =Tarifas!E187 -> 947.9588703
A188: CA - Residencial Coletivo 3 - 1 - Fixo | B188: =Tarifas!E188 -> 1046.073316
A189: CA - Residencial Coletivo 3 - 2 - Fixo | B189: =Tarifas!E189 -> 1244.817014
A190: CA - Residencial Coletivo 3 - 3 - Fixo | B190: =Tarifas!E190 -> 1481.332124
A191: CA - Residencial Coletivo 3 - 4 - Fixo | B191: =Tarifas!E191 -> 1762.79324
A192: CA - Residencial Coletivo 3 - 5 - Fixo | B192: =Tarifas!E192 -> 2097.718655
A193: CA - Residencial Coletivo 3 - 6 - Fixo | B193: =Tarifas!E193 -> 2496.29087
A194: CA - Residencial Coletivo 4 - 1 - Fixo | B194: =Tarifas!E194 -> 4727.171008
A195: CA - Residencial Coletivo 4 - 2 - Fixo | B195: =Tarifas!E195 -> 5625.33917
A196: CA - Residencial Coletivo 4 - 3 - Fixo | B196: =Tarifas!E196 -> 6694.144367
A197: CA - Residencial Coletivo 4 - 4 - Fixo | B197: =Tarifas!E197 -> 7966.032536
A198: CA - Residencial Coletivo 4 - 5 - Fixo | B198: =Tarifas!E198 -> 9479.588703
A199: CA - Residencial Coletivo 4 - 6 - Fixo | B199: =Tarifas!E199 -> 11280.70809
A200: CA - Social II - 1 - Fixo | B200: =Tarifas!E200 -> 5.300818152
... 473 more rows

Sheet DBresultados (hidden)
A1: N° | B1: Categoria | C1: Sit. Esgoto | D1: Economias | E1: Consumo | F1: Faixa | G1: Fat. Atual Agua | H1: Fat. Atual Esgoto | I1: Fat. Velha Agua | J1: Fat. Velha Esgoto | K1: Fat Total Atual | L1: Fat. Total Velha
A2: 1 | B2: Residencial | C2: Coleta, Afastamento e Tratamento | D2: 1 | E2: 10 | F2: 1
A3: 2 | B3: Residencial | C3: Coleta, Afastamento e Tratamento | D3: 1 | E3: 10 | F3: 1
A4: 3 | B4: Residencial | C4: Coleta, Afastamento e Tratamento | D4: 1 | E4: 10 | F4: 1 | G4: 37.29 | H4: 29.86 | I4: 34.8 | J4: 27.84 | K4: 67.15 | L4: 62.64
A5: 4 | B5: Residencial | C5: Coleta, Afastamento e Tratamento | D5: 1 | E5: 10 | F5: 1
A6: 5 | B6: Residencial | C6: Coleta, Afastamento e Tratamento | D6: 1 | E6: 10 | F6: 1
A7: 6 | B7: Residencial | C7: Coleta, Afastamento e Tratamento | D7: 1 | E7: 10 | F7: 1
A8: 7 | B8: Residencial | C8: Coleta, Afastamento e Tratamento | D8: 1 | E8: 10 | F8: 1 | G8: 37.29 | H8: 29.86 | I8: 37.29 | J8: 18.1 | K8: 67.15 | L8: 55.39
A9: 8 | B9: Residencial | C9: Coleta, Afastamento e Tratamento | D9: 1 | E9: 10 | F9: 1 | G9: 37.29 | H9: 29.86 | I9: 37.29 | J9: 14.5 | K9: 67.15 | L9: 51.79
A10: 9 | B10: Residencial | C10: Coleta, Afastamento e Tratamento | D10: 1 | E10: 10 | F10: 1 | G10: 37.29 | H10: 29.86 | I10: 37.29 | J10: 1.45 | K10: 67.15 | L10: 38.74
A11: 10 | B11: Residencial | C11: Coleta, Afastamento e Tratamento | D11: 1 | E11: 10 | F11: 1 | G11: 37.29 | H11: 29.86 | I11: 37.29 | J11: 16.81 | K11: 67.15 | L11: 54.1
A12: 11 | B12: Residencial | C12: Coleta, Afastamento e Tratamento | D12: 1 | E12: 10 | F12: 1 | G12: 37.29 | H12: 29.86 | I12: 37.29 | J12: 29.86 | K12: 67.15 | L12: 67.15
A13: 12 | B13: Residencial | C13: Coleta, Afastamento e Tratamento | D13: 1 | E13: 10 | F13: 1 | G13: 42.17 | H13: 33.77 | I13: 37.29 | J13: 29.86 | K13: 75.94 | L13: 67.15
A14: 13 | B14: Residencial | C14: Coleta, Afastamento e Tratamento | D14: 1 | E14: 10 | F14: 1 | G14: 42.17 | H14: 33.77 | I14: 37.29 | J14: 29.86 | K14: 75.94 | L14: 67.15
A15: 14 | B15: Residencial Coletivo 1 - Hidrometros Y, A, B | C15: Coleta, Afastamento e Tratamento | D15: 10 | E15: 100 | F15: 5 | G15: 535.68 | H15: 428.49 | I15: 473.68 | J15: 378.89 | K15: 964.17 | L15: 852.57
A16: 15 | B16: Residencial Coletivo 2 - Hidrometros C, D | C16: Coleta, Afastamento e Tratamento | D16: 10 | E16: 100 | F16: 1 | G16: 845.7 | H16: 675.88 | I16: 593.01 | J16: 597.65 | K16: 1521.58 | L16: 1190.66
A17: 16 | B17: Residencial Coletivo 2 - Hidrometros C, D | C17: Coleta, Afastamento e Tratamento | D17: 10 | E17: 100 | F17: 1 | G17: 845.7 | H17: 675.88 | I17: 593.01 | J17: 597.65 | K17: 1521.58 | L17: 1190.66
A18: 17 | B18: Social I | C18: Coleta, Afastamento e Tratamento | D18: 1 | E18: 10 | F18: 1 | G18: 10.52 | H18: 8.41 | I18: 9.3 | J18: 7.44 | K18: 18.93 | L18: 16.74
A19: 18 | B19: Social II | C19: Coleta, Afastamento e Tratamento | D19: 1 | E19: 10 | F19: 1 | G19: 16.83 | H19: 13.5 | I19: 14.88 | J19: 11.94 | K19: 30.33 | L19: 26.82
A20: 19 | B20: Comercial e Serviços | C20: Coleta, Afastamento e Tratamento | D20: 1 | E20: 10 | F20: 1 | G20: 66.26 | H20: 66.26 | I20: 58.59 | J20: 58.59 | K20: 132.52 | L20: 117.18
A21: 20 | B21: Comercial Coletivo 1 - Hidrometros Y, A, B | C21: Coleta, Afastamento e Tratamento | D21: 10 | E21: 100 | F21: 5 | G21: 668.84 | H21: 668.84 | I21: 591.42 | J21: 591.42 | K21: 1337.67 | L21: 1182.84
A22: 21 | B22: Comercial Coletivo 1 - Hidrometros Y, A, B | C22: Coleta, Afastamento e Tratamento | D22: 10 | E22: 100 | F22: 5 | G22: 668.84 | H22: 668.84 | I22: 591.42 | J22: 591.42 | K22: 1337.67 | L22: 1182.84
A23: 22 | B23: Industrial | C23: Coleta, Afastamento e Tratamento | D23: 1 | E23: 10 | F23: 1 | G23: 103.96 | H23: 103.96 | I23: 91.93 | J23: 91.93 | K23: 207.93 | L23: 183.86
A24: 23 | B24: Poder Público | C24: Coleta, Afastamento e Tratamento | D24: 1 | E24: 10 | F24: 1 | G24: 69.45 | H24: 69.45 | I24: 61.41 | J24: 61.41 | K24: 138.9 | L24: 122.82
A25: 24 | B25: Residencial | C25: Coleta, Afastamento e Tratamento | D25: 1 | E25: 10 | F25: 1 | G25: 42.76 | H25: 34.23 | I25: 42.18 | J25: 33.77 | K25: 76.99 | L25: 75.95
A26: 25 | B26: Residencial | C26: Coleta, Afastamento e Tratamento | D26: 1 | E26: 10 | F26: 1 | G26: 42.76 | H26: 34.23 | I26: 42.18 | J26: 33.77 | K26: 76.99 | L26: 75.95
A27: 26 | B27: Residencial | C27: Coleta, Afastamento e Tratamento | D27: 1 | E27: 10 | F27: 1 | G27: 42.75 | H27: 34.23 | I27: 42.17 | J27: 33.77 | K27: 76.98 | L27: 75.94
A28: 27 | B28: Residencial | C28: Coleta e Afastamento | D28: 1 | E28: 10 | F28: 1 | G28: 42.7 | H28: 26.04 | I28: 42.12 | J28: 25.69 | K28: 68.75 | L28: 67.82
A29: 28 | B29: Residencial | C29: Coleta, Afastamento e Tratamento | D29: 1 | E29: 10 | F29: 1 | G29: 42.7 | H29: 34.23 | I29: 42.12 | J29: 33.76 | K29: 76.93 | L29: 75.89
A30: 29 | B30: Residencial | C30: Coleta, Afastamento e Tratamento | D30: 1 | E30: 10 | F30: 1 | G30: 42.7 | H30: 34.23 | I30: 42.12 | J30: 33.76 | K30: 76.93 | L30: 75.89
A31: 30 | B31: Residencial | C31: Coleta, Afastamento e Tratamento | D31: 1 | E31: 10 | F31: 1 | G31: 42.7 | H31: 34.23 | I31: 42.12 | J31: 33.76 | K31: 76.93 | L31: 75.89
